bitfinex/quotes_SOLUSD_20240825
["timestamp","ask_amount","ask_price","bid_price","bid_amount"]
[1724544255072,45.0,160.59,160.51,10.72722297]
[1724544255258,16.2162,160.58,160.47,6.25360531]
[1724544255471,45.0,160.57,160.49,10.72722297]
[1724544256466,45.0,160.57,160.45,22.215]
[1724544256784,16.79662297,160.56,160.47,10.72722297]
[1724544256995,45.0,160.55,160.47,10.72722297]
[1724544258389,45.0,160.55,160.48,20.0]
[1724544272067,15.0458,160.54,160.48,20.0]
[1724544272271,45.0,160.53,160.46,20.0]
[1724544274006,45.0,160.53,160.43,7.08239681]
[1724544274181,51.45517274,160.53,160.43,17.80961978]
[1724544275197,51.45517274,160.53,160.44,20.0]
[1724544276676,51.45517274,160.53,160.45,10.72722297]
[1724544277776,51.45517274,160.53,160.47,10.72722297]
[1724544277777,6.45517274,160.53,160.47,10.72722297]
[1724544278105,15.0458,160.54,160.48,1.24603341]
[1724544278396,15.0458,160.54,160.49,11.97324342]
[1724544278580,15.0458,160.54,160.5,1.24593942]
[1724544279397,15.0458,160.54,160.51,10.72722297]
[1724544279794,17.18504451,160.61,160.53,10.72722297]
[1724544279795,15.6553,160.6,160.53,10.72722297]
[1724544281302,15.6553,160.6,160.51,10.72722297]
[1724544282187,26.38252297,160.6,160.51,10.72722297]
[1724544282880,45.0,160.59,160.51,10.72722297]
[1724544284401,45.0,160.59,160.53,10.72722297]
[1724544285307,15.6553,160.6,160.53,10.72722297]
[1724544285603,32.60752297,160.65,160.55,10.72722297]
[1724544285792,22.11642241,160.65,160.57,10.72722297]
[1724544285996,22.11642241,160.65,160.58,1.24533372]
[1724544286193,15.6553,160.65,160.59,10.72722297]
[1724544286387,15.6553,160.69,160.61,10.72722297]
[1724544286589,26.38252297,160.69,160.55,21.67770531]
[1724544286798,10.72722297,160.67,160.58,10.72722297]
[1724544286989,10.72722297,160.67,160.59,20.0]
[1724544287680,10.72722297,160.67,160.58,20.0]
[1724544288085,10.72722297,160.67,160.57,10.72722297]
[1724544288504,45.0,160.66,160.57,10.72722297]
[1724544288892,10.72722297,160.65,160.55,10.72722297]
[1724544289082,45.0,160.64,160.56,20.0]
[1724544289901,45.0,160.64,160.54,10.72722297]
[1724544289902,10.72722297,160.63,160.54,10.72722297]
[1724544290299,60.6553,160.62,160.54,10.72722297]
[1724544290497,60.6553,160.62,160.51,42.25819486]
[1724544291619,60.6553,160.62,160.52,20.0]
[1724544291819,60.6553,160.62,160.52,21.24561882]
[1724544292112,60.6553,160.62,160.52,20.0]
[1724544295796,87.48939486,160.62,160.49,26.83409486]
[1724544296913,12.68809057,160.61,160.47,42.65409486]
[1724544297124,45.0,160.6,160.47,42.65409486]
[1724544298211,45.0,160.6,160.48,20.0]
[1724544299719,45.0,160.6,160.49,2.75551884]
[1724544300024,45.0,160.6,160.5,2.75551884]
[1724544300209,45.0,160.6,160.49,2.75551884]
[1724544300408,28.1846,160.59,160.5,2.75551884]
[1724544300735,71.83409486,160.58,160.47,2.75551884]
[1724544300909,71.83409486,160.58,160.45,33.08770017]
[1724544301459,71.83409486,160.58,160.48,2.75718678]
[1724544302024,45.0,160.58,160.48,2.75718678]
[1724544302206,21.9576,160.59,160.49,26.83409486]
[1724544302403,21.9576,160.59,160.5,20.0]
[1724544302404,28.1847,160.59,160.5,20.0]
[1724544302738,6.2274,160.58,160.49,20.0]
[1724544303025,6.2274,160.58,160.48,2.75718678]
[1724544303214,55.01869486,160.59,160.48,22.75718678]
[1724544303426,45.0,160.58,160.48,22.75718678]
[1724544304716,45.0,160.58,160.48,2.75718678]
[1724544305122,6.228,160.57,160.48,2.75718678]
[1724544305335,45.0,160.56,160.48,2.75718678]
[1724544305539,45.0,160.56,160.48,4.31642715]
[1724544305835,45.0,160.56,160.48,2.75718678]
[1724544306043,45.0,160.56,160.48,4.31642715]
[1724544306248,45.0,160.56,160.48,2.75718678]
[1724544306618,45.0,160.56,160.49,1.55912921]
[1724544306918,21.9576,160.59,160.5,2.80510099]
[1724544307122,21.9576,160.59,160.51,1.55912921]
[1724544307322,21.9576,160.59,160.52,1.55874599]
[1724544307517,21.9576,160.59,160.52,20.0]
[1724544308136,21.9576,160.59,160.53,1.55873738]
[1724544309340,21.9576,160.59,160.52,20.0]
[1724544309528,21.9576,160.59,160.53,1.55874376]
[1724544309730,45.0,160.58,160.51,1.55881717]
[1724544309922,45.0,160.58,160.52,1.5587825]
[1724544310244,45.0,160.58,160.5,20.0]
[1724544310447,45.0,160.58,160.53,1.55872368]
[1724544310625,45.0,160.58,160.52,21.55872368]
[1724544310825,45.0,160.58,160.52,20.0]
[1724544311239,10.73649319,160.57,160.45,6.25360531]
[1724544311438,10.73649319,160.55,160.46,1.55894962]
[1724544311648,45.0,160.58,160.46,1.55894962]
[1724544311649,10.73649319,160.57,160.47,12.29544281]
[1724544311855,45.0,160.54,160.48,1.55894962]
[1724544312047,45.0,160.54,160.47,10.73649319]
[1724544312644,45.0,160.54,160.48,20.0]
[1724544314435,45.0,160.54,160.46,20.0]
[1724544315557,45.0,160.54,160.44,15.82]
[1724544315864,45.0,160.54,160.43,11.56528469]
[1724544315865,32.91539319,160.53,160.43,11.56528469]
[1724544316064,45.0,160.52,160.43,11.56528469]
[1724544316446,45.0,160.52,160.43,16.09255642]
[1724544316947,45.0,160.52,160.43,11.56528469]
[1724544317265,45.0,160.52,160.44,20.0]
[1724544317839,15.9428,160.67,160.53,6.4517]
[1724544318051,6.2361,160.7,160.53,6.4517]
[1724544318258,6.2361,160.7,160.54,73.14079679]
[1724544318540,6.2361,160.7,160.55,1.24523587]
[1724544318738,10.73649319,160.67,160.56,10.73649319]
[1724544318936,6.2361,160.7,160.57,20.0]
[1724544318937,10.73649319,160.65,160.57,20.0]
[1724544319159,10.73649319,160.65,160.54,81.67819231]
[1724544319361,10.73649319,160.63,160.54,65.0]
[1724544319563,6.2361,160.6,160.55,4.51517958]
[1724544319751,6.2361,160.6,160.49,6.4517]
[1724544319752,6.2361,160.6,160.5,20.0]
[1724544320060,10.73649319,160.58,160.55,4.51512547]
[1724544320472,6.2361,160.6,160.55,4.51512547]
[1724544320473,26.86007009,160.56,160.55,4.51512547]
[1724544320973,6.2361,160.6,160.55,4.51512547]
[1724544321153,22.1789,160.68,160.55,4.51512547]
[1724544321353,6.46954854,160.64,160.55,4.51512547]
[1724544321561,26.86007009,160.63,160.55,4.51512547]
[1724544321956,33.32610478,160.63,160.55,4.51512547]
[1724544322672,45.0,160.62,160.55,4.51512547]
[1724544323964,26.86007009,160.61,160.55,4.51512547]
[1724544324376,26.86007009,160.59,160.55,4.51512547]
[1724544324581,49.03897009,160.59,160.55,4.51512547]
[1724544325178,22.1789,160.59,160.55,4.51512547]
[1724544325481,6.46603469,160.63,160.57,26.86007009]
[1724544325688,22.1789,160.81,160.62,26.86007009]
[1724544325981,6.235,160.92,160.58,1.24522377]
[1724544325982,6.46551422,160.75,160.63,23.04365431]
[1724544326171,20.0,160.9,160.72,26.86007009]
[1724544326172,6.2361,160.9,160.72,26.86007009]
[1724544326362,6.46393381,160.89,160.73,1.24427145]
[1724544326578,6.46393381,160.89,160.64,65.0]
[1724544326579,6.46393381,160.89,160.79,31.04231926]
[1724544326779,0.8287915,160.99,160.8,20.0]
[1724544326998,15.9428,161.08,160.85,26.86007009]
[1724544326999,9.43440521,161.08,160.85,26.86007009]
[1724544327173,9.43440521,161.08,160.8,91.0465043]
[1724544327174,9.43440521,161.08,160.88,26.86007009]
[1724544327495,26.86007009,160.96,160.84,20.0]
[1724544327809,20.0,161.06,160.8,20.0]
[1724544328091,20.0,161.06,160.71,15.347]
[1724544328092,6.2142,160.93,160.71,15.347]
[1724544328300,6.2148,160.91,160.72,65.0]
[1724544328490,6.2148,160.91,160.58,9.62934149]
[1724544328491,6.2361,160.91,160.58,9.62934149]
[1724544328664,33.4950172,160.8,160.65,33.4950172]
[1724544328862,33.4950172,160.83,160.68,33.4950172]
[1724544329071,33.4950172,160.83,160.7,7.68319469]
[1724544329475,65.0,160.82,160.71,33.4950172]
[1724544329702,65.0,160.82,160.7,7.68319469]
[1724544329904,33.4950172,160.81,160.7,7.68319469]
[1724544330073,65.0,160.82,160.7,7.68319469]
[1724544330278,33.4950172,160.81,160.7,7.68319469]
[1724544330477,65.0,160.82,160.7,7.68319469]
[1724544330478,20.0,160.8,160.7,7.68319469]
[1724544330783,45.0,160.79,160.7,7.68319469]
[1724544331105,20.0,160.78,160.7,7.68319469]
[1724544331583,45.0,160.77,160.7,7.68319469]
[1724544331787,20.0,160.76,160.7,7.68319469]
[1724544332501,6.2165,160.87,160.73,33.4950172]
[1724544332805,39.7311172,160.91,160.74,1.24402253]
[1724544333188,39.7311172,160.91,160.74,20.0]
[1724544333189,33.4950172,160.88,160.74,20.0]
[1724544333392,6.2361,160.91,160.74,20.0]
[1724544333393,33.4950172,160.85,160.74,20.0]
[1724544333698,33.4950172,160.85,160.7,41.17821189]
[1724544333699,33.4950172,160.85,160.71,20.0]
[1724544333904,33.4950172,160.85,160.7,41.17821189]
[1724544333905,6.2178,160.83,160.7,41.17821189]
[1724544334107,20.0,160.82,160.7,41.17821189]
[1724544334311,20.0,160.84,160.7,41.17821189]
[1724544334511,20.0,160.84,160.7,7.68319469]
[1724544334715,20.0,160.85,160.7,7.68319469]
[1724544334887,6.2164,160.87,160.71,106.40459406]
[1724544335306,40.16073687,160.86,160.71,20.0]
[1724544335515,40.16073687,160.83,160.71,20.0]
[1724544335909,6.46211021,160.86,160.71,20.0]
[1724544336110,6.2177,160.84,160.71,20.0]
[1724544336303,6.46211021,160.86,160.72,1.24411265]
[1724544336514,6.2169,160.85,160.71,20.0]
[1724544336817,45.0,160.84,160.71,20.0]
[1724544337000,20.0,160.83,160.71,20.0]
[1724544337720,26.2176,160.84,160.67,40.16073687]
[1724544337894,20.0,160.84,160.7,40.16073687]
[1724544338091,20.0,160.84,160.71,20.0]
[1724544338790,45.0,160.83,160.71,20.0]
[1724544338994,20.0,160.82,160.71,20.0]
[1724544339195,6.46211021,160.86,160.73,40.16073687]
[1724544339414,6.46211021,160.86,160.74,20.0]
[1724544339415,45.0,160.85,160.74,20.0]
[1724544339804,6.46211021,160.86,160.74,20.0]
[1724544339985,6.46211021,160.86,160.75,1.24385937]
[1724544340186,6.46211021,160.86,160.76,41.40453322]
[1724544340389,6.46211021,160.86,160.77,20.0]
[1724544340824,12.67901021,160.86,160.72,45.0]
[1724544341125,12.67901021,160.86,160.73,20.0]
[1724544341126,46.37793687,160.85,160.73,20.0]
[1724544341421,40.16073687,160.85,160.71,20.0]
[1724544341626,65.0,160.84,160.7,40.16073687]
[1724544341820,65.0,160.84,160.68,15.2387]
[1724544342021,6.2184,160.82,160.67,40.16073687]
[1724544342227,71.2188,160.81,160.67,40.16073687]
[1724544342605,65.0,160.81,160.7,40.16073687]
[1724544342838,20.0,160.81,160.7,40.16073687]
[1724544343029,6.217,160.85,160.7,40.16073687]
[1724544343247,6.217,160.85,160.64,41.40474439]
[1724544343248,20.0,160.84,160.73,40.16073687]
[1724544343427,20.0,160.85,160.74,20.0]
[1724544344114,6.2163,160.87,160.75,45.0]
[1724544344529,6.2171,160.85,160.74,20.0]
[1724544344932,6.2176,160.84,160.71,20.0]
[1724544345228,6.2171,160.85,160.73,40.16073687]
[1724544345439,6.2171,160.85,160.74,20.0]
[1724544345739,45.0,160.84,160.74,20.0]
[1724544346214,45.0,160.84,160.73,20.0]
[1724544346621,45.0,160.84,160.71,20.0]
[1724544346622,6.2187,160.81,160.71,20.0]
[1724544346826,6.2187,160.81,160.68,20.0]
[1724544347028,26.46980197,160.83,160.55,14.1481606]
[1724544347029,105.16073687,160.8,160.64,40.16073687]
[1724544347536,105.16073687,160.8,160.61,40.16073687]
[1724544347739,40.16073687,160.77,160.61,40.16073687]
[1724544348041,40.16073687,160.74,160.59,0.8287915]
[1724544348208,6.2221,160.72,160.59,0.8287915]
[1724544348527,6.2224,160.71,160.59,0.8287915]
[1724544348736,6.2219,160.73,160.59,0.8287915]
[1724544348918,20.0,160.72,160.59,0.8287915]
[1724544349126,6.2229,160.7,160.59,0.8287915]
[1724544349324,26.2222,160.72,160.59,0.8287915]
[1724544349532,26.2222,160.72,160.6,1.24483021]
[1724544349732,20.0,160.72,160.61,40.16073687]
[1724544349922,26.2217,160.73,160.61,40.16073687]
[1724544350123,51.222,160.72,160.61,40.16073687]
[1724544350427,20.0,160.71,160.59,0.8287915]
[1724544350744,20.0,160.71,160.59,20.8287915]
[1724544351034,20.0,160.71,160.6,45.0]
[1724544351242,20.0,160.71,160.61,20.0]
[1724544351716,20.0,160.71,160.62,46.2448326]
[1724544351917,20.0,160.73,160.62,46.2448326]
[1724544352139,20.0,160.73,160.62,45.0]
[1724544352338,6.2202,160.77,160.63,20.0]
[1724544352542,6.2206,160.76,160.64,45.0]
[1724544352858,40.16073687,160.8,160.65,20.0]
[1724544352859,40.16073687,160.77,160.65,20.0]
[1724544353337,40.16073687,160.77,160.63,20.0]
[1724544353722,6.2217,160.73,160.63,20.0]
[1724544354225,20.0,160.76,160.63,20.0]
[1724544354542,45.0,160.75,160.63,20.0]
[1724544354739,20.0,160.74,160.63,20.0]
[1724544354918,45.0,160.73,160.63,20.0]
[1724544355118,6.2224,160.71,160.59,20.8287915]
[1724544355355,20.0,160.72,160.59,20.8287915]
[1724544356048,26.222,160.72,160.59,20.8287915]
[1724544356444,6.2235,160.69,160.59,20.8287915]
[1724544356653,6.2235,160.69,160.6,1.24510277]
[1724544356855,6.2225,160.71,160.6,1.24510277]
[1724544357153,6.4682345,160.7,160.6,34.7654701]
[1724544357342,6.4682345,160.7,160.61,20.0]
[1724544358359,20.0,160.72,160.63,33.5205389]
[1724544358650,6.47148596,160.73,160.63,33.5205389]
[1724544358856,12.69308596,160.73,160.63,33.5205389]
[1724544359062,20.0,160.72,160.63,33.5205389]
[1724544359649,20.0,160.72,160.61,20.0]
[1724544359840,20.0,160.72,160.62,45.0]
[1724544360038,20.0,160.72,160.63,20.0]
[1724544360243,45.0,160.71,160.59,0.8287915]
[1724544360463,6.2233,160.69,160.59,0.8287915]
[1724544360668,33.5205389,160.69,160.59,0.8287915]
[1724544360963,65.0,160.68,160.59,0.8287915]
[1724544361461,6.2259,160.62,160.59,0.8287915]
[1724544361763,39.7460389,160.63,160.59,0.8287915]
[1724544361940,45.0,160.62,160.59,0.8287915]
[1724544363444,20.0,160.68,160.59,0.8287915]
[1724544363648,26.2236,160.68,160.59,0.8287915]
[1724544364360,20.0,160.68,160.59,0.8287915]
[1724544364571,33.5205389,160.66,160.59,0.8287915]
[1724544364741,51.2248,160.65,160.59,0.8287915]
[1724544364940,45.0,160.65,160.59,0.8287915]
[1724544366762,6.2251,160.64,160.59,0.8287915]
[1724544366963,39.7460389,160.63,160.59,0.8287915]
[1724544367146,45.0,160.62,160.59,0.8287915]
[1724544367468,51.2258,160.62,160.59,0.8287915]
[1724544368953,6.47318332,160.61,160.59,0.8287915]
[1724544372555,6.2238,160.68,160.59,0.8287915]
[1724544372956,6.47618022,160.67,160.59,0.8287915]
[1724544373753,6.2244,160.66,160.59,0.8287915]
[1724544373950,6.47618022,160.67,160.59,0.8287915]
[1724544374156,6.47618022,160.67,160.59,2.07390828]
[1724544374355,47.5239,160.75,160.6,1.24508376]
[1724544374356,33.5205389,160.73,160.6,1.24508376]
[1724544374548,33.5205389,160.73,160.6,21.24508376]
[1724544374549,6.47245526,160.7,160.6,21.24508376]
[1724544374757,6.47245526,160.7,160.6,20.0]
[1724544374949,39.7421389,160.73,160.6,20.0]
[1724544375153,6.47215758,160.71,160.6,20.0]
[1724544375573,6.2235,160.69,160.6,20.0]
[1724544375771,39.7432389,160.7,160.59,20.8287915]
[1724544375983,6.2231,160.69,160.59,20.8287915]
[1724544376158,6.2231,160.69,160.59,0.8287915]
[1724544376159,20.0,160.68,160.59,0.8287915]
[1724544376472,6.47215758,160.71,160.59,20.8287915]
[1724544376650,65.0,160.7,160.59,20.8287915]
[1724544377545,26.2231,160.7,160.59,20.8287915]
[1724544377981,20.0,160.7,160.59,20.8287915]
[1724544378274,45.0,160.69,160.59,20.8287915]
[1724544378475,45.0,160.69,160.59,0.8287915]
[1724544378672,20.0,160.68,160.59,0.8287915]
[1724544378984,33.5205389,160.64,160.59,0.8287915]
[1724544379352,45.0,160.63,160.59,0.8287915]
[1724544379772,33.5205389,160.61,160.59,0.8287915]
[1724544380076,45.0,160.6,160.59,0.8287915]
[1724544382269,65.0,160.6,160.59,0.8287915]
[1724544385453,71.47579161,160.6,160.59,0.8287915]
[1724544386451,6.47579161,160.6,160.59,0.8287915]
[1724544386657,33.5205389,160.64,160.59,0.8287915]
[1724544386857,56.4050389,160.7,160.59,0.8287915]
[1724544387159,6.47389115,160.67,160.59,2.07397351]
[1724544387360,6.2232,160.69,160.59,2.07397351]
[1724544387563,6.473008,160.67,160.59,2.07397351]
[1724544387979,6.473008,160.67,160.59,0.8287915]
[1724544388183,20.0,160.66,160.59,0.8287915]
[1724544388785,26.2244,160.66,160.59,0.8287915]
[1724544388971,6.2251,160.64,160.59,0.8287915]
[1724544389162,45.0,160.63,160.59,0.8287915]
[1724544389782,20.0,160.62,160.59,0.8287915]
[1724544390074,45.0,160.61,160.59,0.8287915]
[1724544390466,78.5205389,160.61,160.59,0.8287915]
[1724544390666,20.0,160.6,160.59,0.8287915]
[1724544390870,65.0,160.6,160.59,0.8287915]
[1724544391571,71.2266,160.6,160.59,0.8287915]
[1724544394098,46.50389747,160.65,160.59,0.8287915]
[1724544394396,6.2252,160.64,160.59,0.8287915]
[1724544394598,6.473008,160.67,160.6,62.53109747]
[1724544394812,6.4068,160.8,160.66,40.27909747]
[1724544394968,16.1172,160.81,160.67,60.27909747]
[1724544395163,6.4068,160.85,160.67,67.09401961]
[1724544395507,6.4068,160.85,160.69,6.2599]
[1724544395790,46.68589747,160.85,160.7,21.24423711]
[1724544396084,52.90279747,160.85,160.71,1.24422814]
[1724544396289,52.90279747,160.85,160.69,6.2599]
[1724544396290,40.27909747,160.82,160.69,6.2599]
[1724544396973,20.0,160.81,160.69,6.2599]
[1724544397864,40.27909747,160.79,160.64,6.2599]
[1724544398067,20.0,160.78,160.65,20.0]
[1724544398289,45.0,160.77,160.65,20.0]
[1724544398593,20.0,160.76,160.65,20.0]
[1724544398789,45.0,160.75,160.65,20.0]
[1724544399392,20.0,160.74,160.65,20.0]
[1724544400191,6.2185,160.81,160.66,1.24456711]
[1724544400391,65.0,160.8,160.67,40.27909747]
[1724544400697,16.1172,160.87,160.7,40.27909747]
[1724544400891,6.2165,160.86,160.71,1.24420094]
[1724544401071,12.87903035,160.85,160.71,1.24420094]
[1724544401390,12.87903035,160.85,160.68,45.0]
[1724544401391,59.37542782,160.85,160.68,45.0]
[1724544401701,59.37542782,160.85,160.7,40.27909747]
[1724544401702,53.15812782,160.85,160.7,40.27909747]
[1724544401878,53.15812782,160.85,160.71,1.2442251]
[1724544402078,12.87903035,160.85,160.71,1.2442251]
[1724544402382,20.0,160.84,160.71,1.2442251]
[1724544402683,20.0,160.84,160.71,21.2442251]
[1724544403800,20.0,160.84,160.71,20.0]
[1724544404390,40.27909747,160.83,160.67,40.27909747]
[1724544404578,20.0,160.82,160.68,21.24446315]
[1724544404784,45.0,160.81,160.68,20.0]
[1724544405006,20.0,160.8,160.68,20.0]
[1724544405185,45.0,160.79,160.65,20.0]
[1724544405386,20.0,160.78,160.65,20.0]
[1724544405605,45.0,160.77,160.66,1.24455326]
[1724544407485,45.0,160.77,160.64,46.53899747]
[1724544407486,6.2214,160.74,160.64,6.2599]
[1724544407699,6.2214,160.74,160.6,22.62853148]
[1724544407700,65.0,160.73,160.6,22.252]
[1724544408694,65.0,160.73,160.6,6.2599]
[1724544409002,65.0,160.73,160.59,0.8287915]
[1724544409383,71.2217,160.73,160.59,0.8287915]
[1724544409684,6.2225,160.71,160.59,0.8287915]
[1724544410003,51.2229,160.7,160.59,0.8287915]
[1724544410208,20.0,160.69,160.59,0.8287915]
[1724544410387,6.224,160.67,160.59,0.8287915]
[1724544410581,65.0,160.66,160.59,0.8287915]
[1724544411407,71.4738853,160.66,160.59,0.8287915]
[1724544413422,26.4738853,160.66,160.59,0.8287915]
[1724544413612,20.0,160.66,160.59,0.8287915]
[1724544413915,6.47191186,160.7,160.6,41.52430083]
[1724544414222,6.47191186,160.7,160.61,20.0]
[1724544415012,12.69481186,160.7,160.59,0.8287915]
[1724544415209,65.0,160.69,160.59,0.8287915]
[1724544415419,105.27909747,160.69,160.59,0.8287915]
[1724544415713,6.224,160.67,160.59,0.8287915]
[1724544415909,71.2244,160.66,160.59,0.8287915]
[1724544416091,6.2244,160.66,160.59,0.8287915]
[1724544416290,65.0,160.65,160.59,0.8287915]
[1724544416712,45.0,160.64,160.59,0.8287915]
[1724544417321,20.0,160.65,160.59,0.8287915]
[1724544417529,20.0,160.68,160.59,0.8287915]
[1724544417718,45.0,160.67,160.59,0.8287915]
[1724544417933,20.0,160.66,160.59,0.8287915]
[1724544418236,20.0,160.68,160.59,0.8287915]
[1724544418405,45.0,160.67,160.59,0.8287915]
[1724544418614,20.0,160.66,160.59,0.8287915]
[1724544419236,20.0,160.69,160.59,0.8287915]
[1724544419420,26.2233,160.69,160.59,0.8287915]
[1724544419743,6.2235,160.68,160.59,0.8287915]
[1724544419920,20.0,160.67,160.59,0.8287915]
[1724544420634,26.2232,160.69,160.59,0.8287915]
[1724544420941,20.0,160.69,160.59,0.8287915]
[1724544421110,6.2239,160.68,160.59,0.8287915]
[1724544421311,20.0,160.67,160.59,0.8287915]
[1724544421833,6.47191186,160.7,160.59,0.8287915]
[1724544422730,6.224,160.67,160.59,0.8287915]
[1724544423419,71.2244,160.66,160.59,0.8287915]
[1724544424012,65.0,160.66,160.59,0.8287915]
[1724544424229,6.4742131,160.65,160.59,0.8287915]
[1724544425040,65.0,160.64,160.59,0.8287915]
[1724544425546,71.2253,160.64,160.59,0.8287915]
[1724544425754,6.2255,160.63,160.59,0.8287915]
[1724544426052,65.0,160.62,160.59,0.8287915]
[1724544427855,20.0,160.62,160.59,0.8287915]
[1724544428155,20.0,160.63,160.59,0.8287915]
[1724544428850,6.4742131,160.65,160.59,0.8287915]
[1724544429358,39.77144432,160.69,160.59,0.8287915]
[1724544429530,6.4781991,160.67,160.59,0.8287915]
[1724544430032,12.7020991,160.67,160.59,0.8287915]
[1724544430241,6.4781991,160.67,160.59,0.8287915]
[1724544430550,6.2253,160.64,160.59,0.8287915]
[1724544430727,20.0,160.63,160.59,0.8287915]
[1724544430930,20.0,160.65,160.59,0.8287915]
[1724544431129,6.4781991,160.67,160.59,0.8287915]
[1724544431130,20.0,160.66,160.59,0.8287915]
[1724544432127,20.0,160.66,160.6,6.3087]
[1724544432328,6.2226,160.71,160.6,6.3087]
[1724544432640,6.2226,160.71,160.61,1.24504756]
[1724544432641,26.47652546,160.7,160.61,1.24504756]
[1724544432840,26.47652546,160.7,160.6,6.3087]
[1724544433624,45.0,160.69,160.6,6.3087]
[1724544433832,20.0,160.68,160.6,6.3087]
[1724544434040,45.0,160.67,160.6,6.3087]
[1724544434250,26.2245,160.66,160.6,6.3087]
[1724544434447,45.0,160.65,160.59,0.8287915]
[1724544434753,20.0,160.64,160.59,0.8287915]
[1724544434928,45.0,160.65,160.59,0.8287915]
[1724544436135,51.2244,160.66,160.59,0.8287915]
[1724544436339,20.0,160.65,160.59,0.8287915]
[1724544436932,20.0,160.67,160.59,0.8287915]
[1724544437437,45.0,160.66,160.59,0.8287915]
[1724544437659,20.0,160.65,160.59,0.8287915]
[1724544437847,33.54834432,160.64,160.59,0.8287915]
[1724544438049,65.0,160.63,160.59,0.8287915]
[1724544438861,6.2259,160.62,160.59,0.8287915]
[1724544439160,65.0,160.61,160.59,0.8287915]
[1724544439660,6.6289,160.66,160.59,0.8287915]
[1724544439839,39.77254432,160.67,160.59,0.8287915]
[1724544440338,6.2242,160.67,160.59,0.8287915]
[1724544441561,6.2245,160.66,160.59,0.8287915]
[1724544441759,6.2252,160.64,160.59,0.8287915]
[1724544441938,20.0,160.65,160.59,0.8287915]
[1724544442138,26.2245,160.66,160.59,0.8287915]
[1724544442541,51.2247,160.65,160.59,0.8287915]
[1724544442752,20.0,160.64,160.59,0.8287915]
[1724544444830,45.0,160.63,160.59,0.8287915]
[1724544445267,20.0,160.64,160.59,0.8287915]
[1724544445444,6.47682165,160.65,160.59,0.8287915]
[1724544451067,65.0,160.64,160.59,0.8287915]
[1724544453144,6.47603367,160.63,160.59,0.8287915]
[1724544454147,65.0,160.62,160.59,0.8287915]
[1724544454367,71.2258,160.62,160.59,0.8287915]
[1724544455252,6.2263,160.61,160.59,0.8287915]
[1724544455457,45.0,160.6,160.59,0.8287915]
[1724544455761,71.2266,160.6,160.59,0.8287915]
[1724544463590,77.69875562,160.6,160.59,0.8287915]
[1724544473095,77.69875562,160.6,160.56,10.0]
[1724544473096,6.2278,160.57,160.56,10.0]
[1724544473406,129.6418052,160.57,160.56,6.70366126]
[1724544473884,6.4651,160.54,160.43,0.8287915]
[1724544474084,26.8478052,160.5,160.43,0.8287915]
[1724544474286,6.2317,160.47,160.43,0.8287915]
[1724544474490,65.0,160.49,160.43,0.8287915]
[1724544474491,6.2321,160.46,160.43,0.8287915]
[1724544474790,26.8478052,160.48,160.43,0.8287915]
[1724544474791,20.0,160.45,160.43,0.8287915]
[1724544475268,45.0,160.44,160.43,0.8287915]
[1724544475471,20.0,160.45,160.43,0.8287915]
[1724544475904,6.2328,160.44,160.43,0.8287915]
[1724544476089,71.2328,160.44,160.43,0.8287915]
[1724544476675,98.0806052,160.44,160.43,0.8287915]
[1724544476877,98.0806052,160.44,160.36,10.0]
[1724544476878,91.8478052,160.44,160.36,10.0]
[1724544477097,6.2345,160.4,160.36,10.0]
[1724544477279,65.0,160.39,160.36,10.0]
[1724544478697,20.0,160.39,160.36,10.0]
[1724544478871,20.0,160.45,160.36,10.0]
[1724544479071,6.2333,160.43,160.36,10.0]
[1724544479309,20.0,160.42,160.36,10.0]
[1724544479796,6.2322,160.46,160.36,36.8478052]
[1724544480535,6.2322,160.46,160.36,10.0]
[1724544481111,65.0,160.45,160.36,10.0]
[1724544481600,20.0,160.45,160.37,6.4836]